Cogmind - Beta 13 @@@ ROGUE MODE // 2024.05.08 @ 13:06:12 Player: BionicBot Result: Destroyed by P-60 Hacker with Shock Rifle Performance ------------- Evolutions (3) 1500 Regions Visited (7) 1400 Robots Destroyed (0) 0 Value Destroyed (0) 0 Prototype IDs (0) 0 Alien Tech Used (0) 0 Bonus (1534) 1534 TOTAL SCORE: 4434 Bonus ------- Pacifist 834 Entered Garrisons 200 Entered DSFs 500 Cogmind --------- Core Integrity 0/700 Matter 212/300 Energy 98/100 System Corruption 0% Temperature Cool (0) Movement Core (50) Location -7/Garrison Parts ------- > --- POWER (1) -------- (None) > --- PROPULSION (2) --- (None) > --- UTILITY (8) ------ (None) > --- WEAPON (2) ------- (None) > --- INVENTORY (5) ---- Sensor Array Terrain Scanner Great Axe Great Axe Great Axe Peak State ------------ > --- POWER ------------ (None) > --- PROPULSION ------- (None) > --- UTILITY ---------- Sensor Array Terrain Scanner > --- WEAPON ----------- (None) > --- INVENTORY -------- Sensor Array [Rating: 2] Favorites ----------- Power None Propulsion None Utility Terrain Scanner Device Terrain Scanner Weapon None Build | -11 -10 -9 -9 -8 -7 -7 -7 ------- Run | Yrd Mat Mat Min Mat Fac DSF Gar Slots Evolved 6 | . . 2 . 2 2 . . Power . | . . . . . . . . Propulsion . | . . . . . . . . Utility 6 | . . 2 . 2 2 . . Weapon . | . . . . . . . . Parts Attached 2 | . 2 . . . . . . Power . | . . . . . . . . Engine . | . . . . . . . . Core . | . . . . . . . . Reactor . | . . . . . . . . Propulsion . | . . . . . . . . Treads . | . . . . . . . . Leg . | . . . . . . . . Wheel . | . . . . . . . . Hover . | . . . . . . . . Flight . | . . . . . . . . Utility 2 | . 2 . . . . . . Device 2 | . 2 . . . . . . Storage . | . . . . . . . . Processor . | . . . . . . . . Hackware . | . . . . . . . . Protection . | . . . . . . . . Artifact . | . . . . . . . . Weapon . | . . . . . . . . Energy Gun . | . . . . . . . . Energy Cannon . | . . . . . . . . Ballistic Gun . | . . . . . . . . Ballistic Cannon . | . . . . . . . . Launcher . | . . . . . . . . Special Weapon . | . . . . . . . . Impact Weapon . | . . . . . . . . Slashing Weapon . | . . . . . . . . Piercing Weapon . | . . . . . . . . Special Melee Weapon . | . . . . . . . . Unidentified Prototypes . | . . . . . . . . Parts Lost 2 | . . . . 2 . . . Power . | . . . . . . . . Propulsion . | . . . . . . . . Utility 2 | . . . . 2 . . . Weapon . | . . . . . . . . Highest Loss Streak 1 | . . . . 1 . . . To Critical Strikes . | . . . . . . . . Average Slot Usage (%) 12 | . 21 22 22 5 . . . Device 12 | . 21 22 22 5 . . . Naked Turns 198 | . 18 . . 86 20 32 42 Heaviest Build 2 | . 2 2 2 2 . . . Greatest Support 3 | 3 3 3 3 3 3 3 3 Greatest Overweight (x) . | . . . . . . . . Average Overweight (x) . | . . . . . . . . Largest Inventory Capacity 5 | 5 5 5 5 5 5 5 5 Average Capacity 5 | 5 5 5 5 5 5 5 5 Most Carried 5 | . 2 2 2 2 2 5 5 Average Carried 2 | . 1 2 2 2 2 4 5 Final Capacity 5 | 5 5 5 5 5 5 5 5 Final Carried 5 | . 2 2 2 2 2 5 5 Class Distribution -------------------- 100% | Mutant Dominant Class ---------------- Mutant | -10/Materials Mutant | -9/Materials Mutant | -9/Mines Mutant | -8/Materials Mutant | -7/Factory Mutant | -7/DSF Mutant | -7/Garrison Resources | -11 -10 -9 -9 -8 -7 -7 -7 ----------- Run | Yrd Mat Mat Min Mat Fac DSF Gar Matter Collected 101 | 99 . . . . . 2 . Remotely . | . . . . . . . . Salvage Created . | . . . . . . . . Parts . | . . . . . . . . Haulers Intercepted . | . . . . . . . . Recyclers Shooed . | . . . . . . . . Parts Field Recycled . | . . . . . . . . Retrieved Matter . | . . . . . . . . Parts Self-Destructed . | . . . . . . . . Prevented . | . . . . . . . . Kills | -11 -10 -9 -9 -8 -7 -7 -7 ------- Run | Yrd Mat Mat Min Mat Fac DSF Gar Combat Hostiles Destroyed . | . . . . . . . . Classes Destroyed . | . . . . . . . . Best Kill Streak . | . . . . . . . . Combat Bots Only . | . . . . . . . . Max Kills in Single Turn . | . . . . . . . . Gunslinging . | . . . . . . . . Exploded . | . . . . . . . . Melee . | . . . . . . . . Uniques/NPCs Destroyed . | . . . . . . . . Combat | -11 -10 -9 -9 -8 -7 -7 -7 -------- Run | Yrd Mat Mat Min Mat Fac DSF Gar Hostile Shots Fired 105 | . 4 4 10 12 . 20 55 Missed 40 | . . 1 3 3 . 8 25 Damage Taken 1025 | . 45 45 93 136 3 295 408 Core 960 | . 34 32 81 107 3 295 408 Absorbed by Shields 53 | . . . . . . . 53 Core Remaining (%) 84 | 100 86 . 71 80 . . . Volleys Fired . | . . . . . . . . Largest . | . . . . . . . . Hottest . | . . . . . . . . Shots Fired . | . . . . . . . . Gun . | . . . . . . . . Cannon . | . . . . . . . . Launcher . | . . . . . . . . Special . | . . . . . . . . Kinetic . | . . . . . . . . Thermal . | . . . . . . . . Explosive . | . . . . . . . . Electromagnetic . | . . . . . . . . Robot Hit Streak . | . . . . . . . . Robot Miss Streak . | . . . . . . . . Penetration Max . | . . . . . . . . Secondary Targets . | . . . . . . . . Shots Hit Robots . | . . . . . . . . Core Hits 1 | . . . . . 1 . . Critical Kills . | . . . . . . . . Critical Parts Destroyed . | . . . . . . . . Critical Strikes . | . . . . . . . . Melee Attacks . | . . . . . . . . Impact . | . . . . . . . . Slashing . | . . . . . . . . Piercing . | . . . . . . . . Sneak Attacks . | . . . . . . . . Combat Hostiles . | . . . . . . . . Follow-up Attacks . | . . . . . . . . Damage Inflicted 40 | . . . 25 9 6 . . Guns . | . . . . . . . . Cannons . | . . . . . . . . Explosions . | . . . . . . . . Melee . | . . . . . . . . Ramming 40 | . . . 25 9 6 . . Kinetic . | . . . . . . . . Thermal . | . . . . . . . . Explosive . | . . . . . . . . Electromagnetic . | . . . . . . . . Impact . | . . . . . . . . Slashing . | . . . . . . . . Piercing . | . . . . . . . . Highest Corruption . | . . . . . . . . Average Corruption . | . . . . . . . . Corruption Purged . | . . . . . . . . Corruption Blocked . | . . . . . . . . Overload Shots . | . . . . . . . . Overflow Damage . | . . . . . . . . Projectiles . | . . . . . . . . Explosions . | . . . . . . . . Melee . | . . . . . . . . Knockbacks . | . . . . . . . . Impact . | . . . . . . . . Kinetic . | . . . . . . . . Secondary . | . . . . . . . . Self-Inflicted Damage 19 | . . . 12 4 3 . . Shots . | . . . . . . . . Rammed 5 | . . . 3 1 1 . . Targets Rammed 5 | . . . 3 1 1 . . Kicked . | . . . . . . . . Crushed . | . . . . . . . . Highest Temperature . | . . . . . . . . Average Temperature . | . . . . . . . . Received Heat Transfer 186 | . 24 9 45 81 . 27 . Siege Activations . | . . . . . . . . Robots Corrupted . | . . . . . . . . Combat Hostiles . | . . . . . . . . Parts Fried . | . . . . . . . . Impact Corruptions . | . . . . . . . . Robots Melted . | . . . . . . . . Combat Hostiles . | . . . . . . . . Parts Melted . | . . . . . . . . Heat Transferred . | . . . . . . . . Parts Sabotaged . | . . . . . . . . Parts Stolen . | . . . . . . . . Parts Stripped . | . . . . . . . . Power Chain Reactions . | . . . . . . . . Alert | -11 -10 -9 -9 -8 -7 -7 -7 ------- Run | Yrd Mat Mat Min Mat Fac DSF Gar Peak Influence 120 | . . 15 50 120 54 52 39 Initial 54 | . . . 5 19 54 37 39 Average 33 | . . 12 44 35 54 38 39 Maximum Alert Level . | . . . . . . . . Low Security (%) 100 | 100 100 100 100 100 100 100 100 Level 1 . | . . . . . . . . Level 2 . | . . . . . . . . Level 3 . | . . . . . . . . Level 4 . | . . . . . . . . Level 5 . | . . . . . . . . High Security . | . . . . . . . . Max Security . | . . . . . . . . Squads Dispatched 3 | . . . . 2 . 1 . Investigation 1 | . . . . 1 . . . Extermination . | . . . . . . . . Reinforcement 2 | . . . . 1 . 1 . Assault . | . . . . . . . . Garrison . | . . . . . . . . Intercept . | . . . . . . . . Searches Triggered . | . . . . . . . . Construction Impeded . | . . . . . . . . Haulers Reinforced . | . . . . . . . . Active Scanning Responses . | . . . . . . . . Cargo Convoy Interrupts . | . . . . . . . . Stealth | -11 -10 -9 -9 -8 -7 -7 -7 --------- Run | Yrd Mat Mat Min Mat Fac DSF Gar Distress Signals 2 | . . . . 2 . . . Communications Jammed . | . . . . . . . . Distress Signals . | . . . . . . . . Times Spotted 30 | . 2 1 4 12 . 4 7 Peak Tracking Total 10 | . 3 1 2 10 . 5 7 Tactical Retreats 5 | . . . 1 3 . 1 . Traps | -11 -10 -9 -9 -8 -7 -7 -7 ------- Run | Yrd Mat Mat Min Mat Fac DSF Gar Traps Triggered 2 | . . . . 1 . . 1 Indirectly . | . . . . . . . . Trap Hack Attempts . | . . . . . . . . Triggered . | . . . . . . . . Disarmed . | . . . . . . . . Reprogrammed . | . . . . . . . . Reused . | . . . . . . . . Traps Extracted . | . . . . . . . . Installed . | . . . . . . . . Triggered . | . . . . . . . . Machines | -11 -10 -9 -9 -8 -7 -7 -7 ---------- Run | Yrd Mat Mat Min Mat Fac DSF Gar Machines Disabled . | . . . . . . . . Max in Single Turn . | . . . . . . . . Machines Repaired . | . . . . . . . . Machines Dismantled . | . . . . . . . . Machines Sabotaged . | . . . . . . . . Overloaded Fab Kills . | . . . . . . . . Hacking | -11 -10 -9 -9 -8 -7 -7 -7 --------- Run | Yrd Mat Mat Min Mat Fac DSF Gar Machines Accessed 5 | . 2 . . 2 1 . . Terminals 5 | . 2 . . 2 1 . . Fabricators . | . . . . . . . . Repair Stations . | . . . . . . . . Recycling Units . | . . . . . . . . Scanalyzers . | . . . . . . . . Garrison Access . | . . . . . . . . Total Hacks 9 | . 5 . . 3 1 . . Successful 1 | . . . . . 1 . . Failed 8 | . 5 . . 3 . . . Catastrophic 3 | . 2 . . 1 . . . Database Lockouts . | . . . . . . . . Manual 8 | . 5 . . 3 . . . Terminals 9 | . 5 . . 3 1 . . Fabricators . | . . . . . . . . Repair Stations . | . . . . . . . . Recycling Units . | . . . . . . . . Scanalyzers . | . . . . . . . . Garrison Access . | . . . . . . . . Terminal Hacks 1 | . . . . . 1 . . Open DSF 1 | . . . . . 1 . . Fabricator Hacks . | . . . . . . . . Repair Station Hacks . | . . . . . . . . Recycling Unit Hacks . | . . . . . . . . Scanalyzer . | . . . . . . . . Garrison Access Hacks . | . . . . . . . . Unauthorized Hacks . | . . . . . . . . Terminals . | . . . . . . . . Fabricators . | . . . . . . . . Repair Stations . | . . . . . . . . Recycling Units . | . . . . . . . . Scanalyzers . | . . . . . . . . Garrison Access . | . . . . . . . . Data Cores Recovered . | . . . . . . . . Used . | . . . . . . . . Hacking Detections 5 | . 2 . . 2 1 . . Full Trace Events 1 | . . . . 1 . . . Feedback Events . | . . . . . . . . Feedback Blocked . | . . . . . . . . Robot Schematics Acquired . | . . . . . . . . Robots Built . | . . . . . . . . Authchips . | . . . . . . . . Time . | . . . . . . . . Total Robot Build Rating . | . . . . . . . . Part Schematics Acquired . | . . . . . . . . Parts Built . | . . . . . . . . Authchips . | . . . . . . . . Time . | . . . . . . . . Total Part Build Rating . | . . . . . . . . Parts Repaired . | . . . . . . . . Time . | . . . . . . . . Parts Recycled . | . . . . . . . . Recycled Matter . | . . . . . . . . Retrieved Matter . | . . . . . . . . Retrieved Components . | . . . . . . . . Parts Scanalyzed . | . . . . . . . . Part Schematics Acquired . | . . . . . . . . Parts Damaged . | . . . . . . . . Bothacking | -11 -10 -9 -9 -8 -7 -7 -7 ------------ Run | Yrd Mat Mat Min Mat Fac DSF Gar Used RIF Installer . | . . . . . . . . Robots Hacked . | . . . . . . . . Non-combat . | . . . . . . . . Combat . | . . . . . . . . Robot Hacks Applied . | . . . . . . . . Relay Couplers Released . | . . . . . . . . Fabnet Peak Effective % . | . . . . . . . . Robots Rewired . | . . . . . . . . Allies Hacked . | . . . . . . . . Hacks Repelled . | . . . . . . . . Allies | -11 -10 -9 -9 -8 -7 -7 -7 -------- Run | Yrd Mat Mat Min Mat Fac DSF Gar Total Allies 2 | . . . 2 . . . . Largest Group 2 | . . . 2 2 . . . Highest-Rated Group 45 | . . . 45 45 . . . Highest-Rated Ally 31 | . . . 31 31 . . . Total Orders . | . . . . . . . . Ally Attacks 6 | . . . . 6 . . . Total Damage 42 | . . . . 42 . . . Kills . | . . . . . . . . Allies Corrupted . | . . . . . . . . Allies Melted . | . . . . . . . . Intel | -11 -10 -9 -9 -8 -7 -7 -7 ------- Run | Yrd Mat Mat Min Mat Fac DSF Gar Robot Analysis Total . | . . . . . . . . Derelict Logs Recovered 1 | . . . 1 . . . . Drone Launches . | . . . . . . . . Drone Recoveries . | . . . . . . . . Exploration | -11 -10 -9 -9 -8 -7 -7 -7 ------------- Run | Yrd Mat Mat Min Mat Fac DSF Gar Turns Passed 497 | 9 62 22 162 148 20 32 42 Spaces Moved 916 | 19 114 25 300 294 37 57 70 Core 916 | 19 114 25 300 294 37 57 70 Treads . | . . . . . . . . Legs . | . . . . . . . . Wheels . | . . . . . . . . Hover . | . . . . . . . . Flight . | . . . . . . . . Fastest Speed 50 | 50 50 50 50 50 50 50 50 Average Speed 50 | 50 50 50 50 50 50 50 50 Slowest Speed 50 | 50 50 50 50 50 50 50 50 Overloaded Moves . | . . . . . . . . Propulsion Burnouts . | . . . . . . . . Robots Hopped . | . . . . . . . . Cave-ins Triggered . | . . . . . . . . Exploration Rate (%) 24 | 3 28 4 56 26 1 58 20 Regions Visited 7 Branch Regions 1 Pre-discovered Areas . | . . . . . . . . Known Exits Taken 2 | . . . 1 . 1 . . Unknown Exits Taken 4 | 1 1 1 . 1 . . . Scrap Searched . | . . . . . . . . Spaces Dug . | . . . . . . . . Terrain Destroyed . | . . . . . . . . Melee . | . . . . . . . . Projectile . | . . . . . . . . AOE . | . . . . . . . . Terrain Rammed . | . . . . . . . . Walls Destroyed . | . . . . . . . . Machines Disabled . | . . . . . . . . Actions | -11 -10 -9 -9 -8 -7 -7 -7 --------- Run | Yrd Mat Mat Min Mat Fac DSF Gar Total 946 | 18 117 33 311 294 37 59 77 Wait 18 | . . 9 9 . . . . Move 909 | 18 113 24 299 293 36 56 70 Hop . | . . . . . . . . Pick Up 5 | . 2 . . . . 3 . Fast Attach 2 | . 2 . . . . . . Attach . | . . . . . . . . Detach . | . . . . . . . . Swap . | . . . . . . . . Drop . | . . . . . . . . Fire . | . . . . . . . . Melee . | . . . . . . . . Ram 5 | . . . 3 1 1 . . Kick . | . . . . . . . . Crush . | . . . . . . . . Escape Stasis 7 | . . . . . . . 7 Rewire . | . . . . . . . . Trap . | . . . . . . . . Miscellaneous . | . . . . . . . . Route ------- -11/Scrapyard -10/Materials -9/Materials -9/Mines -8/Materials -7/Factory -7/DSF -7/Garrison History --------- Turn | Location | Event 3 | -11/Scrapyard | Discovered new exit (range 15) 10 | -11/Scrapyard | Entered Materials 65 | -10/Materials | Discovered new exit (range 16) 72 | -10/Materials | Entered another Materials area 72 | -9/Materials | Evolved 2 slots: Utility x2 75 | -9/Materials | Discovered new exit (range 15) 94 | -9/Materials | Entered Mines 203 | -9/Mines | Identified exit to Materials 256 | -9/Mines | Entered Materials 256 | -8/Materials | Accompanied by 2 allies 256 | -8/Materials | Evolved 2 slots: Utility x2 261 | -8/Materials | Led the pair of lost Derelicts to an unsafe place 302 | -8/Materials | Build established: Mutant 397 | -8/Materials | Discovered new exit (range 16) 404 | -8/Materials | Entered Factory 404 | -7/Factory | Evolved 2 slots: Utility x2 423 | -7/Factory | Identified exit to DSF 424 | -7/Factory | Entered DSF 446 | -7/DSF | Additional patrols routed to DSF 448 | -7/DSF | Discovered new exit (range 15) 456 | -7/DSF | Entered Garrison 466 | -7/Garrison | Triggered checkpoint 469 | -7/Garrison | Core integrity fell below 50% 470 | -7/Garrison | Triggered checkpoint 484 | -7/Garrison | Core integrity fell below 20% 488 | -7/Garrison | Triggered checkpoint 498 | -7/Garrison | Destroyed by P-60 Hacker with Shock Rifle Last Messages --------------- 00450_ Penetrated by Slug. 00455_ C-17 Slicer knocked back. LOCATION=UNKNOWN GOAL=ESCAPE 00466_ Beams of light sweep through the air. An alarm sounds. 00466_ C-30 ARC bursts open, deploying its payload. 00466_ S-27 Virus unfolds itself. 00470_ Beams of light sweep through the air. An alarm sounds. 00476_ Triggered Stasis Trap. 00476_ A bubble of rippling energy engulfs the area. 00476_ Field strength at 94. 00477_ Field strength at 88. 00478_ Field strength at 78. 00479_ Field strength at 68. 00480_ Field strength at 52. 00481_ Field strength at 42. 00482_ Field strength at 18. 00483_ Field strength at 4. 00483_ Stasis field depleted. 00488_ Beams of light sweep through the air. An alarm sounds. Map ----- +----------------------------------------------------+ | ?????????????????????????????????????????????????? | | ?????????????????????????????????????????????????? | | ?????????????????????????????????????????????????? | | ?????????????????????????????????????????????????? | | ?????????????????????????????????????????????????? | | ?????????????????????????????????????????????????? | | ?????????????????????????????????????????????????? | | ?????????????????????????????????????????????????? | | ?????????????????????????????????????????????????? | | ?????????????????????????????????????????????????? | | ?????????????????????????????????????????????????? | | ?????????????????????????????????????????????????? | | ?????????????????????????????????????????????????? | | ?????????????????????????????????????????????????? | | ?????????????????????????????????????????????????? | | ???????????????????????###???????????????????????? | | ???????????????????????# ?????? ????? ????????? | | ???????????????????????# #????? ????? #???????? | | ???????????????????????# #????? ????? #???????? | | ???????????????????????# #????? ????? #???????? | | ???????????????????????# #????? ????# T???????? | | ????????????????????#### #????? ????# #???????? | | ????????????????????? p #????? ????# #???????? | | ?????????????????????? #????+ +???# #???????? | | ???????????????????????# #????# #???# #???????? | | ???????????????????????# @#????# #???# #???????? | | ???????????????????????# #????# #???# #???????? | | ???????????????????????# #????# #???# #???????? | | ????????????????######## #????# #???# #???????? | | ????????????????+ s#????# #???# ##""""## | | ????????????????+ s###### ##### | | ????????????????######## s | | ???????????????????????# | | ???????????????????????#########+##### ## ## | | ?????????????????????????????????????# ## ## | | ???????????????????????????????????# | | ???????????????????????????????????# | | ???????????????????????????????????# | | ???????????????????????????????????# | | ???????????????????????????????????### ## ## | | ???????????????????################### ## ##? | | ???????????????????? | | ???????????????????????????# | | ???????????????????????????# | | ???????????????????????????# ############""""### | | ???????????????????????????# #?????????????????? | | ???????????????????????????# #?????????????????? | | ???????????????????????????# #?????????????????? | | ???????????????????????????# #?????????????????? | | ???????????????????????????# ###???????????????? | +----------------------------------------------------+ Best States ------------- Heat Dissipation 34 Energy Generation 5 Energy Capacity 100 Matter Stores 212 Matter Capacity 300 Sight Range 16 Robot Scan Range 14 Terrain Scan Range 14 Terrain Scan Density 10 Evasion (%) 50 Item Schematics ----------------- None Robot Schematics ------------------ None Fabricated ------------ Nothing Alien Tech Used ----------------- None Achievements -------------- None Challenges ------------ None Game ------ Seed DroneSmartbombDetonator Manual? 0 Play Time 00:08:05 Cumulative 53.0 hours Start 2024.05.08 @ 12:58:39 End 2024.05.08 @ 13:06:12 Sessions 1 Manual Loads 0 Difficulty Rogue Special Mode None Game No. 48 Rogue 48 Adventurer 0 Explorer 0 Win Type - Total 1 Types 1/0/0/0/0/0/0/0/0 Lore% 12 Gallery% 34 Achievement% 30 Wizard Run 0 Options --------- Layout 0 ASCII 0 Keyboard 1 Movement Numpad Keybinds 0 Fullscreen 2 Font 18/SmallcapsGlow Map View 76x50 Zoom Use 0% Tactical HUD 1 Map Filters NONE Filters NONE Steam 1 RUN: 8d88f42e-87a8-4fe8-88e8-20a17aee147a